fUST/lending_fUST_20250228
["ID","MTS","AMOUNT","RATE_DAILY","PERIOD"]
[354860509,1740749464451,-270.27763456,0.00057534,120]
[354860510,1740749899481,1000.0,0.0003,2]
[354860511,1740749914777,500.0,0.00025,120]
[354860513,1740750303131,379.39,0.00015005,2]
[354860514,1740750406132,-169.702477,0.00032877,2]
[354860515,1740750406154,-120.98006275,0.00033,30]
[354860517,1740750562074,-400.0,0.00032999,2]
[354860518,1740750562096,-79.46117672,0.00033,30]
[354860519,1740750562117,-200.44123947,0.00033,30]
[354860520,1740750562138,-200.44123947,0.00033,30]
[354860521,1740750562161,-28.41121685,0.00033,30]
[354860556,1740750632199,-741.62137333,0.000309,2]
[354860558,1740750632209,-400.0,0.00032999,2]
[354860560,1740750632219,-471.58878315,0.00033,30]
[354860562,1740750632229,-500.0,0.00033,30]
[354860564,1740750632239,-500.0,0.00033,30]
[354860566,1740750632250,-500.0,0.00033,30]
[354860568,1740750632260,-500.0,0.00033,2]
[354860570,1740750632270,-500.0,0.00033,2]
[354860572,1740750632280,-918.74829542,0.00033,2]
[354860574,1740750632290,-466.13685171,0.00034298,2]
[354860576,1740750632300,-259.0,0.00035456,2]
[354860578,1740750632310,-741.62137333,0.000359,2]
[354860580,1740750632320,-329.94557,0.00037014,2]
[354860582,1740750632330,-206.03067069,0.00037903,2]
[354860584,1740750632340,-900.0,0.00039,2]
[354860586,1740750632350,-1821.30712911,0.0003989,2]
[354860588,1740750632359,-213.64498538,0.00039892,2]
[354860590,1740750632369,-248.52217116,0.000399,8]
[354860592,1740750632379,-4762.82933594,0.00039913,2]
[354860596,1740750632408,-1045.41164201,0.00039913,2]
[354860601,1740750632428,-1463.69125071,0.00039913,2]
[354860604,1740750632438,-252.019,0.00039971,2]
[354860607,1740750632448,-151.0,0.00039971,2]
[354860610,1740750632458,-500.0,0.00039973,5]
[354860613,1740750632468,-500.0,0.00039973,5]
[354860616,1740750632477,-500.80743544,0.00039973,5]
[354860618,1740750632487,-353.52,0.0003998,3]
[354860622,1740750632500,-294.6,0.0003998,3]
[354860624,1740750632510,-883.84,0.0003998,3]
[354860628,1740750632521,-500.0,0.0003999,31]
[354860630,1740750632532,-190.53556174,0.0003999,31]
[354860632,1740750632542,-500.0,0.0003999,31]
[354860634,1740750632551,-399.84475883,0.0003999,31]
[354860637,1740750632561,-285.20029714,0.0003999,31]
[354860640,1740750632572,-463.22229381,0.0003999,31]
[354860644,1740750632582,-253.15618489,0.0003999,31]
[354860646,1740750632592,-369.2894566,0.0003999,31]
[354860649,1740750632602,-1653.20306105,0.0003999,2]
[354860651,1740750632611,-1653.20306105,0.0003999,2]
[354860653,1740750632621,-1653.20306105,0.0003999,2]
[354860655,1740750632630,-1653.20306105,0.0003999,2]
[354860657,1740750632640,-1653.20306105,0.0003999,2]
[354860659,1740750632649,-1653.20306105,0.0003999,2]
[354860661,1740750632658,-1653.20306105,0.0003999,2]
[354860663,1740750632667,-1653.20306105,0.0003999,2]
[354860665,1740750632678,-1653.20306105,0.0003999,2]
[354860667,1740750632687,-1653.20306105,0.0003999,2]
[354860669,1740750632696,-1653.20306105,0.0003999,2]
[354860671,1740750632705,-1653.20306105,0.0003999,2]
[354860672,1740750632716,-1653.20306105,0.0003999,2]
[354860674,1740750632726,-1653.20306105,0.0003999,2]
[354860677,1740750632736,-1653.20306105,0.0003999,2]
[354860678,1740750632746,-1653.20306105,0.0003999,2]
[354860681,1740750632756,-1653.20306105,0.0003999,2]
[354860682,1740750632766,-1653.20306105,0.0003999,2]
[354860685,1740750632777,-1653.20306105,0.0003999,2]
[354860687,1740750632786,-1653.20306105,0.0003999,2]
[354860689,1740750632796,-1653.20306105,0.0003999,2]
[354860690,1740750632805,-1653.20306105,0.0003999,2]
[354860692,1740750632815,-1653.20306105,0.0003999,2]
[354860694,1740750632824,-1653.20306105,0.0003999,2]
[354860696,1740750632833,-1653.20306105,0.0003999,2]
[354860699,1740750632843,-1653.20306105,0.0003999,2]
[354860700,1740750632853,-1653.20306105,0.0003999,2]
[354860702,1740750632863,-1653.20306105,0.0003999,2]
[354860705,1740750632873,-1653.20306105,0.0003999,2]
[354860707,1740750632883,-1653.20306105,0.0003999,2]
[354860709,1740750632892,-1653.20306105,0.0003999,2]
[354860711,1740750632901,-1653.20306105,0.0003999,2]
[354860713,1740750632911,-1653.20306105,0.0003999,2]
[354860714,1740750632921,-1653.20306105,0.0003999,2]
[354860716,1740750632930,-1653.20306105,0.0003999,2]
[354860719,1740750632940,-1653.20306105,0.0003999,2]
[354860721,1740750632949,-1653.20306105,0.0003999,2]
[354860722,1740750632961,-164.15012396,0.0003999,2]
[354860725,1740750632976,-1489.05293709,0.0003999,2]
[354860727,1740750632986,-1653.20306105,0.0003999,2]
[354860729,1740750632998,-1653.20306105,0.0003999,2]
[354860731,1740750633008,-1653.20306105,0.0003999,2]
[354860733,1740750633018,-1653.20306105,0.0003999,2]
[354860735,1740750633028,-1653.20306105,0.0003999,2]
[354860736,1740750633039,-1653.20306105,0.0003999,2]
[354860738,1740750633050,-1653.20306105,0.0003999,2]
[354860739,1740750633060,-1653.20306105,0.0003999,2]
[354860741,1740750633071,-1653.20306105,0.0003999,2]
[354860743,1740750633081,-1653.20306105,0.0003999,2]
[354860744,1740750633091,-1653.20306105,0.0003999,2]
[354860746,1740750633101,-1653.20306105,0.0003999,2]
[354860748,1740750633111,-1653.20306105,0.0003999,2]
[354860750,1740750633121,-1653.20306105,0.0003999,2]
[354860752,1740750633131,-190.91365968,0.0003999,31]
[354860754,1740750633141,-8089.30312576,0.0003999,2]
[354860756,1740750633152,-8089.30312576,0.0003999,2]
[354860758,1740750633161,-8089.30312576,0.0003999,2]
[354860760,1740750633172,-8089.30312576,0.0003999,2]
[354860762,1740750633182,-8089.30312576,0.0003999,2]
[354860764,1740750633191,-8089.30312576,0.0003999,2]
[354860766,1740750633202,-8089.30312576,0.0003999,2]
[354860768,1740750633212,-8089.30312576,0.0003999,2]
[354860770,1740750633222,-8089.30312576,0.0003999,2]
[354860772,1740750633232,-8089.30312576,0.0003999,2]
[354860774,1740750633242,-8089.30312576,0.0003999,2]
[354860776,1740750633252,-8089.30312576,0.0003999,2]
[354860778,1740750633262,-8089.30312576,0.0003999,2]
[354860780,1740750633273,-8089.30312576,0.0003999,2]
[354860782,1740750633283,-8089.30312576,0.0003999,2]
[354860784,1740750633293,-8089.30312576,0.0003999,2]
[354860786,1740750633303,-8089.30312576,0.0003999,2]
[354860788,1740750633313,-8089.30312576,0.0003999,2]
[354860789,1740750633323,-8089.30312576,0.0003999,2]
[354860791,1740750633342,-8089.30312576,0.0003999,2]
[354860792,1740750633363,-8089.30312576,0.0003999,2]
[354860793,1740750633379,-8089.30312576,0.0003999,2]
[354860794,1740750633391,-8089.30312576,0.0003999,2]
[354860795,1740750633403,-8089.30312576,0.0003999,2]
[354860796,1740750633414,-8089.30312576,0.0003999,2]
[354860797,1740750633426,-8089.30312576,0.0003999,2]
[354860798,1740750633438,-7373.04406765,0.0003999,2]
[354860813,1740750638171,-361.13852167,0.0003999,2]
[354860820,1740750638234,-355.12053644,0.0003999,2]
[354860822,1740750638244,-8089.30312576,0.0003999,2]
[354860824,1740750638253,-8089.30312576,0.0003999,2]
[354860826,1740750638263,-8089.30312576,0.0003999,2]
[354860827,1740750638272,-8089.30312576,0.0003999,2]
[354860828,1740750638282,-8089.30312579,0.0003999,2]
[354860829,1740750638291,-8089.30312579,0.0003999,2]
[354860830,1740750638301,-8089.30312579,0.0003999,2]
[354860831,1740750638311,-8089.30312579,0.0003999,2]
[354860832,1740750638320,-8089.30312579,0.0003999,2]
[354860833,1740750638330,-8089.30312579,0.0003999,2]
[354860834,1740750638340,-77660.99,0.0004,30]
[354860835,1740750638350,-2568.89,0.0004,30]
[354860836,1740750638360,-1031.21,0.0004,30]
[354860837,1740750638370,-478.9,0.0004,30]
[354860838,1740750638379,-3842.26,0.0004,30]
[354860839,1740750638388,-151.0,0.00040519,2]
[354860840,1740750638398,-741.62137333,0.000409,2]
[354860841,1740750638407,-151.0,0.00041067,2]
[354860842,1740750638417,-589.2,0.0004135,3]
[354860843,1740750638426,-151.0,0.00041615,2]
[354860844,1740750638435,-151.0,0.00042163,2]
[354860845,1740750638445,-302.0,0.00042711,2]
[354860846,1740750638454,-169.04,0.000428,30]
[354860847,1740750638464,-500.0,0.00043,2]
[354860848,1740750638473,-1821.30712911,0.00044112,28]
[354860849,1740750638483,-1000.0,0.00045452,10]
[354860850,1740750638493,-175.08978036,0.00045452,10]
[354860851,1740750638505,-3085.963,0.000475,60]
[354860852,1740750638515,-1821.30712911,0.00048334,28]
[354860853,1740750638524,-3842.26,0.000485,30]
[354860854,1740750638533,-388.86494908,0.000488,120]
[354860855,1740750638542,-2411.112152,0.0005,36]
[354860856,1740750638551,-478.9,0.00051,30]
[354860857,1740750638561,-1000.0,0.00052,120]
[354860858,1740750638570,-1000.0,0.00052,120]
[354860859,1740750638580,-162.771,0.00052106,95]
[354860860,1740750638589,-500.0,0.00052217,10]
[354860861,1740750638599,-10000.0,0.000525,90]
[354860862,1740750638608,-500.0,0.00052532,10]
[354860863,1740750638618,-1821.30712911,0.00052556,28]
[354860864,1740750638628,-500.0,0.00052602,30]
[354860865,1740750638637,-3000.0,0.00053,10]
[354860866,1740750638647,-55555.0,0.0005305,120]
[354860867,1740750638656,-500.0,0.0005315,35]
[354860868,1740750638666,-500.0,0.00053698,40]
[354860869,1740750638676,-25000.0,0.000537,40]
[354860870,1740750638686,-213.64498537,0.000538,2]
[354860871,1740750638696,-77660.99,0.000539,30]
[354860872,1740750638707,-2568.89,0.000539,30]
[354860873,1740750638717,-1031.21,0.000539,30]
[354860874,1740750638726,-3842.26,0.000539,30]
[354860875,1740750638736,-3000.0,0.00054,30]
[354860876,1740750638749,-2107.16531219,0.00054,120]
[354860877,1740750638762,-500.0,0.00054246,45]
[354860878,1740750638772,-169.04,0.000546,30]
[354860879,1740750638781,-478.9,0.000546,30]
[354860880,1740750638791,-20000.0,0.000546,120]
[354860881,1740750638801,-20000.0,0.000546,120]
[354860882,1740750638810,-6241.57900155,0.00054694,2]
[354860883,1740750638820,-461.02568277,0.00054773,10]
[354860884,1740750638830,-500.0,0.00054773,10]
[354860885,1740750638839,-500.0,0.00054773,10]
[354860886,1740750638849,-515711.7094499,0.0005479,30]
[354860893,1740750640445,-1151.0730949,0.0005479,30]
[354861008,1740750646796,-8168.4,0.00054,120]
[354861009,1740750646809,-1414.65828,0.00054,120]
[354861010,1740750646819,-19266.07992,0.0005479,30]
[354861042,1740750840926,7212.91861055,0.0003,30]
[354861045,1740751204516,-347.43268879,0.000329,2]
[354861046,1740751204541,-500.0,0.00033,30]
[354861047,1740751204566,-600.01278549,0.00033,2]
[354861048,1740751204591,-197.521638,0.00038908,2]
[354861049,1740751204615,-293.1117044,0.00039362,2]
[354861051,1740751221475,-9199.12118332,0.00042634,2]
[354861369,1740751836767,-169.702476,0.00032877,2]
[354861370,1740751836777,-244.18422675,0.00040534,2]
[354861371,1740751836789,-497.43714658,0.00040534,2]
[354861372,1740751836799,-298.68285342,0.00042634,2]
[354861373,1740751836918,-4116.55,0.00042634,2]
[354861374,1740751836972,-11285.64596326,0.00042634,2]
[354861375,1740751836986,-2639.19911167,0.000429,120]
[354861400,1740751838325,-9606.50030311,0.000429,120]
[354861401,1740751838335,-563.05977644,0.000429,9]
[354861402,1740751838345,-297.0,0.00043,90]
[354861403,1740751838358,-741.62137333,0.00045534,2]
[354861404,1740751838368,-930.20409838,0.00049172,28]
[354861405,1740751838378,-500.0,0.00049271,120]
[354861406,1740751838387,-476.7031871,0.00049271,120]
[354861407,1740751838397,-500.0,0.00049271,2]
[354861408,1740751838406,-452.57725564,0.00049271,120]
[354861409,1740751838416,-500.0,0.00049271,2]
[354861410,1740751838425,-500.0,0.00049271,2]
[354861411,1740751838434,-500.0,0.00049271,2]
[354861412,1740751838446,-500.0,0.00049271,2]
[354861413,1740751838455,-500.0,0.00049271,2]
[354861414,1740751838465,-500.0,0.00049271,2]
[354861415,1740751838475,-500.0,0.00049271,2]
[354861416,1740751838486,-500.0,0.00049271,2]
[354861417,1740751838495,-500.0,0.00049271,2]
[354861418,1740751838505,-500.0,0.00049271,2]
[354861419,1740751838514,-500.0,0.00049271,2]
[354861420,1740751838524,-500.0,0.00049271,2]
[354861421,1740751838533,-500.0,0.00049271,2]
[354861422,1740751838542,-500.0,0.00049271,2]
[354861423,1740751838551,-500.0,0.00049271,2]
[354861424,1740751838561,-500.0,0.00049271,2]
[354861425,1740751838571,-500.0,0.00049271,2]
[354861426,1740751838580,-500.0,0.00049271,2]
[354861427,1740751838718,-500.0,0.00049271,2]
[354861428,1740751838731,-500.0,0.00049271,2]
[354861429,1740751838741,-500.0,0.00049271,2]
[354861430,1740751838751,-500.0,0.00049271,2]
[354861431,1740751838761,-500.0,0.00049271,2]
[354861432,1740751838770,-500.0,0.00049271,2]
[354861433,1740751838780,-645.59076495,0.00049271,2]
[354861434,1740751838790,-500.0,0.00049271,2]
[354861435,1740751838799,-500.0,0.00049271,2]
[354861436,1740751838809,-12245.69941474,0.00049273,120]
[354861437,1740751838818,-3346.0,0.00049315,120]
[354861438,1740751838828,-164.97,0.000495,30]
[354861439,1740751838838,-945.55779307,0.00049921,120]
[354861440,1740751838850,-538.69259117,0.00049921,120]
[354861441,1740751838968,-226.74914996,0.00049921,120]
[354861442,1740751838978,-471.13928826,0.00050111,120]
[354861456,1740751842846,-1028.86071174,0.00050111,120]
[354861457,1740751842856,-741.62137333,0.00050534,2]
[354861458,1740751842867,-98.35246502,0.00051751,120]
[354861475,1740751843596,-50.84407778,0.00051751,120]
[354861765,1740751846818,-1350.8034572,0.00051751,120]
[354861767,1740751846828,-162.771,0.00051831,94]
[354861769,1740751846838,-930.20409833,0.00052133,28]
[354861771,1740751846847,-1500.0,0.00052412,120]
[354861773,1740751846857,-844.43,0.00052499,30]
[354861775,1740751846867,-247.87367359,0.00052509,2]
[354861777,1740751846877,-500.0,0.00052602,30]
[354861779,1740751846887,-500.0,0.0005315,35]
[354861781,1740751846896,-500.0,0.00053698,40]
[354861783,1740751846906,-634.57886651,0.00053899,2]
[354861785,1740751846916,-1036.58804861,0.000539,120]
[354861793,1740751846983,-0.03942771,0.000539,120]
[354861974,1740752103139,493.62,0.00025,2]
[354861977,1740752403117,493.62,0.00025,2]
[354861978,1740752426118,3123.117758,0.0003,30]
[354861995,1740752916294,43232.94853594,0.00016,2]
[354861996,1740752918256,4876.96065857,0.00029,2]
[354862000,1740752921251,569.17495875,0.000149,2]
[354862001,1740752921535,490.0,0.0001,2]
[354862028,1740753033028,-4086.39460679,0.000398,60]
[354862029,1740753033039,-853.65460522,0.000399,2]
[354862030,1740753033050,-14530.999999,0.0004,2]
[354862031,1740753033060,-1053.10078899,0.0004,120]
[354862032,1740753033073,-534.1685472,0.0004,120]
[354862052,1740753038639,-201.64608,0.00035,120]
[354862053,1740753038649,-500.0,0.00039999,31]
[354862054,1740753038659,-500.0,0.00039999,2]
[354862055,1740753038670,-500.0,0.00039999,2]
[354862056,1740753038680,-500.0,0.00039999,2]
[354862057,1740753038689,-500.0,0.00039999,2]
[354862058,1740753038699,-500.0,0.00039999,2]
[354862059,1740753038708,-500.0,0.00039999,2]
[354862060,1740753038718,-500.0,0.00039999,2]
[354862061,1740753038727,-500.0,0.00039999,2]
[354862062,1740753038736,-500.0,0.00039999,2]
[354862063,1740753038749,-500.0,0.00039999,2]
[354862064,1740753038759,-500.0,0.00039999,2]
[354862065,1740753038770,-500.0,0.00039999,2]
[354862066,1740753038784,-500.0,0.00039999,2]
[354862067,1740753038794,-500.0,0.00039999,2]
[354862068,1740753038807,-483.15391999,0.00039999,2]
[354862106,1740753044006,-16.84608001,0.00039999,2]
[354862107,1740753044017,-265.40134914,0.00039999,2]
[354862151,1740753047782,-234.59865086,0.00039999,2]
[354862152,1740753047793,-500.0,0.00039999,2]
[354862153,1740753047805,-500.0,0.00039999,2]
[354862154,1740753047815,-500.0,0.00039999,2]
[354862155,1740753047825,-500.0,0.00039999,2]
[354862156,1740753047835,-500.0,0.00039999,2]
[354862157,1740753047844,-500.0,0.00039999,2]
[354862158,1740753047854,-500.0,0.00039999,2]
[354862159,1740753047863,-500.0,0.00039999,2]
[354862160,1740753047875,-500.0,0.00039999,2]
[354862161,1740753047885,-324.59663194,0.00039999,2]
[354862162,1740753047895,-500.0,0.00039999,2]
[354862163,1740753047904,-500.0,0.00039999,2]
[354862164,1740753047914,-500.0,0.00039999,2]
[354862165,1740753047924,-500.0,0.00039999,2]
[354862166,1740753047934,-500.0,0.00039999,2]
[354862167,1740753047943,-500.0,0.00039999,2]
[354862168,1740753047953,-500.0,0.00039999,2]
[354862169,1740753047963,-500.0,0.00039999,2]
[354862170,1740753047972,-124678.05007171,0.0004,120]
[354862171,1740753047981,-500.0,0.0004,5]
[354862172,1740753047990,-500.0,0.0004,5]
[354862173,1740753048002,-500.0,0.0004,5]
[354862174,1740753048012,-169.04,0.0004,7]
[354862175,1740753048023,-197.5216395,0.00040844,2]
[354862176,1740753048032,-853.6546052,0.000434,2]
[354862177,1740753048042,-24900.0,0.00044996,2]
[354862178,1740753048052,-1000.0,0.00045479,10]
[354862179,1740753048062,-899.44104347,0.00045479,10]
[354862180,1740753048072,-853.6546052,0.000469,2]
[354862181,1740753048082,-7549.4458203,0.0004879,120]
[354862182,1740753048092,-190515.73880498,0.0004888,30]
[354862183,1740753048105,-818.81,0.0004888,30]
[354862187,1740753342190,163.36202399,0.00028,10]
[354862192,1740753811178,26985.19706832,0.0003,2]
[354862253,1740754232006,-561.311867,0.0003404,2]
[354862254,1740754232017,-93.54905282,0.00034073,2]
[354862258,1740754232116,-306.45094718,0.00034073,2]
[354862259,1740754232128,-19667.1535976,0.00034074,2]
[354862260,1740754232139,-186.67120626,0.0003605,15]
[354862261,1740754232150,-500.0,0.0003605,15]
[354862262,1740754232164,-500.0,0.0003605,15]
[354862263,1740754232181,-500.0,0.0003605,2]
[354862264,1740754232192,-500.0,0.0003605,15]
[354862265,1740754232204,-500.0,0.0003605,15]
[354862266,1740754232217,-500.0,0.0003605,15]
[354862267,1740754232228,-180.69108488,0.0003605,2]
[354862268,1740754232244,-319.30891512,0.0003605,2]
[354862269,1740754232256,-500.0,0.0003605,15]
[354862270,1740754232266,-500.0,0.0003605,15]
[354862271,1740754232276,-500.0,0.0003605,15]
[354862273,1740754232285,-500.0,0.0003605,15]
[354862274,1740754232296,-500.0,0.0003605,2]
[354862275,1740754232305,-500.0,0.0003605,15]
[354862276,1740754232314,-131.26279398,0.0003605,2]
[354862277,1740754232327,-368.73720602,0.0003605,2]
[354862278,1740754232336,-201.60726417,0.0003605,15]
[354862279,1740754232346,-500.0,0.0003605,15]
[354862280,1740754232356,-451.4581694,0.0003605,15]
[354862281,1740754232366,-500.0,0.0003605,2]
[354862282,1740754232376,-500.0,0.0003605,15]
[354862283,1740754232386,-500.0,0.0003605,15]
[354862284,1740754232396,-500.0,0.0003605,2]
[354862285,1740754232406,-500.0,0.0003605,2]
[354862286,1740754232417,-500.0,0.0003605,15]
[354862287,1740754232426,-320.63255501,0.0003605,15]
[354862288,1740754232436,-500.0,0.0003605,2]
[354862289,1740754232447,-500.0,0.0003605,15]
[354862290,1740754232457,-500.0,0.0003605,2]
[354862291,1740754232467,-500.0,0.0003605,2]
[354862292,1740754232477,-500.0,0.0003605,15]
[354862293,1740754232491,-500.0,0.0003605,2]
[354862294,1740754232505,-500.0,0.0003605,2]
[354862295,1740754232516,-500.0,0.0003605,2]
[354862296,1740754232531,-600.0,0.0003605,2]
[354862297,1740754232544,-500.0,0.0003605,2]
[354862298,1740754232554,-500.0,0.0003605,2]
[354862299,1740754232564,-500.0,0.0003605,2]
[354862300,1740754232664,-500.0,0.0003605,2]
[354862301,1740754232690,-500.0,0.0003605,2]
[354862302,1740754232700,-500.0,0.0003605,2]
[354862303,1740754232710,-500.0,0.0003605,2]
[354862304,1740754232720,-500.0,0.0003605,2]
[354862305,1740754232729,-500.0,0.0003605,2]
[354862306,1740754232743,-500.0,0.0003605,2]
[354862307,1740754232753,-500.0,0.0003605,2]
[354862308,1740754232763,-500.0,0.0003605,2]
[354862309,1740754232772,-500.0,0.0003605,2]
[354862310,1740754232782,-500.0,0.0003605,2]
[354862311,1740754232792,-500.0,0.0003605,2]
[354862312,1740754232803,-500.0,0.0003605,2]
[354862313,1740754232814,-500.0,0.0003605,2]
[354862314,1740754232825,-500.0,0.0003605,2]
[354862315,1740754232835,-500.0,0.0003605,2]
[354862316,1740754232846,-500.0,0.0003605,2]
[354862317,1740754232856,-500.0,0.0003605,2]
[354862318,1740754232867,-500.0,0.0003605,2]
[354862319,1740754232876,-500.0,0.0003605,2]
[354862320,1740754232886,-500.0,0.0003605,2]
[354862321,1740754232897,-500.0,0.0003605,2]
[354862322,1740754232907,-500.0,0.0003605,2]
[354862323,1740754232917,-500.0,0.0003605,2]
[354862324,1740754232927,-500.0,0.0003605,2]
[354862325,1740754232937,-500.0,0.0003605,2]
[354862326,1740754232947,-500.0,0.0003605,2]
[354862327,1740754232957,-500.0,0.0003605,2]
[354862328,1740754232967,-500.0,0.0003605,2]
[354862329,1740754232978,-500.0,0.0003605,2]
[354862330,1740754232990,-500.0,0.0003605,2]
[354862331,1740754233000,-500.0,0.0003605,2]
[354862332,1740754233012,-500.0,0.0003605,2]
[354862333,1740754233022,-500.0,0.0003605,2]
[354862334,1740754233033,-500.0,0.0003605,2]
[354862335,1740754233044,-500.0,0.0003605,2]
[354862336,1740754233054,-500.0,0.0003605,2]
[354862337,1740754233065,-500.0,0.0003605,2]
[354862338,1740754233075,-500.0,0.0003605,2]
[354862339,1740754233086,-500.0,0.0003605,2]
[354862340,1740754233106,-500.0,0.0003605,2]
[354862341,1740754233119,-500.0,0.0003605,2]
[354862342,1740754233131,-500.0,0.0003605,2]
[354862343,1740754233143,-500.0,0.0003605,2]
[354862344,1740754233155,-500.0,0.0003605,2]
[354862345,1740754233170,-500.0,0.0003605,2]
[354862346,1740754233183,-500.0,0.0003605,2]
[354862347,1740754233196,-500.0,0.0003605,2]
[354862348,1740754233209,-500.0,0.0003605,2]
[354862349,1740754233222,-500.0,0.0003605,2]
[354862350,1740754233236,-500.0,0.0003605,2]
[354862351,1740754233249,-500.0,0.0003605,2]
[354862352,1740754233262,-500.0,0.0003605,2]
[354862353,1740754233273,-500.0,0.0003605,2]
[354862354,1740754233285,-650.9639626,0.0003605,2]
[354862355,1740754233296,-500.0,0.0003605,2]
[354862356,1740754233309,-9824.47620625,0.00036051,2]
[354862382,1740754237904,-15075.52379375,0.00036051,2]
[354862384,1740754237914,-500.0,0.000361,5]
[354862385,1740754237924,-500.0,0.000361,5]
[354862386,1740754237934,-500.0,0.000361,5]
[354862387,1740754237944,-500.0,0.000361,5]
[354862388,1740754237954,-7334.73364777,0.000362,98]
[354862389,1740754237964,-560.0,0.00036569,2]
[354862390,1740754237974,-500.0,0.000368,5]
[354862391,1740754237983,-486.42501239,0.000368,5]
[354862392,1740754237997,-200.000001,0.0003698,2]
[354862393,1740754238007,-783.0,0.00039248,5]
[354862394,1740754238017,-150.0,0.000401,7]
[354862395,1740754238026,-7334.73364773,0.00040636,120]
[354862396,1740754238036,-151.0,0.00041096,2]
[354862397,1740754238046,-151.093938,0.00041096,2]
[354862398,1740754238056,-1000.0,0.00041579,10]
[354862399,1740754238069,-500.0,0.00041579,10]
[354862400,1740754238093,-961.02568277,0.00041579,10]
[354862401,1740754238110,-500.0,0.00041579,10]
[354862402,1740754238130,-1097.0,0.00042123,5]
[354862403,1740754238151,-1000.0,0.00042279,10]
[354862404,1740754238172,-500.0,0.000434,10]
[354862405,1740754238189,-500.0,0.000447,7]
[354862406,1740754238211,-500.0,0.00044883,10]
[354862407,1740754238228,-500.0,0.00044883,2]
[354862408,1740754238250,-287.34035607,0.00044883,10]
[354862409,1740754238271,-315.78,0.000449,30]
[354862410,1740754238289,-151.0,0.00045,120]
[354862411,1740754238302,-218.0,0.00045208,5]
[354862412,1740754238322,-7334.73364773,0.00045322,120]
[354862413,1740754238337,-514.07238455,0.00045525,10]
[354862414,1740754238353,-483.06846147,0.000465,10]
[354862415,1740754238367,-8080.722473,0.00047,120]
[354862416,1740754238386,-3217.18,0.00047,30]
[354862417,1740754238401,-4787.83,0.00047,30]
[354862418,1740754238417,-593.47,0.00047,30]
[354862419,1740754238432,-151.0,0.000473,25]
[354862420,1740754238448,-36241.18,0.0004769,10]
[354862421,1740754238463,-384.19083917,0.00047699,2]
[354862422,1740754238477,-22972.0253587,0.000477,120]
[354862423,1740754238494,-19607.61712864,0.0004779,10]
[354862424,1740754238509,-500.0,0.00047799,120]
[354862425,1740754238523,-500.0,0.00047799,31]
[354862426,1740754238538,-216.86803746,0.00047799,120]
[354862427,1740754238553,-549.640208,0.00047799,120]
[354862428,1740754238568,-439.96368072,0.00047799,31]
[354862429,1740754238582,-500.0,0.00047799,120]
[354862430,1740754238597,-500.0,0.00047799,120]
[354862431,1740754238613,-166.04237157,0.00047799,120]
[354862432,1740754238628,-222000.0,0.000478,2]
[354862433,1740754238644,-85316.14,0.000478,30]
[354862434,1740754238659,-1489.53,0.000478,30]
[354862435,1740754238674,-151.0,0.000478,120]
[354862436,1740754238689,-151.420276,0.000478,120]
[354862437,1740754238704,-713.148916,0.000478,120]
[354862438,1740754238719,-713.148916,0.000478,120]
[354862439,1740754238734,-151.0,0.000479,120]
[354862440,1740754238753,-151.0,0.000479,120]
[354862441,1740754238769,-151.0,0.000479,120]
[354862442,1740754238784,-299.90747,0.000479,120]
[354862443,1740754238798,-299.90747,0.000479,120]
[354862444,1740754238812,-501.032863,0.000479,120]
[354862445,1740754238828,-501.032863,0.000479,120]